Cogmind - Beta 14 @@@ ROGUE MODE // 2024.09.01 @ 11:52:39 Player: VR-DUX Result: Destroyed by G-47 Trooper with Particle Gun Performance ------------- Evolutions (0) 0 Regions Visited (1) 200 Robots Destroyed (25) 125 Value Destroyed (583) 583 Prototype IDs (0) 0 Alien Tech Used (0) 0 Bonus (0) 0 TOTAL SCORE: 908 Bonus ------- None Cogmind --------- Core Integrity 0/250 Matter 277/300 Energy 200/250 System Corruption 0% Temperature Hot (224) Movement Treading (160) Location -10/Materials Parts ------- > --- POWER (1) -------- Ion Engine > --- PROPULSION (2) --- Light Treads Light Treads > --- UTILITY (2) ------ Medium Storage Unit Signal Interpreter > --- WEAPON (2) ------- Small Laser Light Assault Rifle > --- INVENTORY (10) --- Light Treads Wheel Heat Sink Huge Storage Unit Signal Interpreter Light Armor Plating Hacking Suite Datajack Peak State ------------ > --- POWER ------------ Light Ion Engine > --- PROPULSION ------- Light Treads Compact Wheel > --- UTILITY ---------- Small Storage Unit Signal Interpreter > --- WEAPON ----------- Small Laser Light Assault Rifle > --- INVENTORY -------- Light Treads Aluminum Leg Wheel Heat Sink Light Armor Plating Hacking Suite Small Laser Datajack [Rating: 8] Favorites ----------- Power Light Ion Engine Engine Light Ion Engine Propulsion Light Treads Treads Light Treads Leg Aluminum Leg Wheel Compact Wheel Utility Small Storage Unit Device Sensor Array Storage Small Storage Unit Processor Signal Interpreter Protection Light Armor Plating Weapon Small Laser Energy Gun Small Laser Ballistic Gun Light Assault Rifle Build | -11 -10 ------- Run | Yrd Mat Slots Evolved . | . . Power . | . . Propulsion . | . . Utility . | . . Weapon . | . . Parts Attached 18 | . 18 Power 3 | . 3 Engine 3 | . 3 Core . | . . Reactor . | . . Propulsion 5 | . 5 Treads 3 | . 3 Leg . | . . Wheel 2 | . 2 Hover . | . . Flight . | . . Utility 4 | . 4 Device 1 | . 1 Storage 1 | . 1 Processor 1 | . 1 Hackware . | . . Protection 1 | . 1 Artifact . | . . Weapon 6 | . 6 Energy Gun 3 | . 3 Energy Cannon . | . . Ballistic Gun 3 | . 3 Ballistic Cannon . | . . Launcher . | . . Special Weapon . | . . Impact Weapon . | . . Slashing Weapon . | . . Piercing Weapon . | . . Special Melee Weapon . | . . Unidentified Prototypes . | . . Parts Lost 2 | . 2 Power . | . . Propulsion . | . . Utility 1 | . 1 Weapon 1 | . 1 Highest Loss Streak 1 | . 1 To Critical Strikes . | . . Average Slot Usage (%) 98 | . 98 Engine 14 | . 14 Treads 19 | . 19 Wheel 7 | . 7 Storage 14 | . 14 Processor 9 | . 9 Protection 2 | . 2 Energy Gun 12 | . 12 Ballistic Gun 15 | . 15 Peak Build Rating 8 | 6 8 Average Rating 7 | 6 7 On Entrance 6 | 6 6 Naked Turns . | . . Heaviest Build 18 | 13 18 Greatest Support 40 | 20 40 Greatest Overweight (x) 1 | . 1 Average Overweight (x) . | . . Largest Inventory Capacity 10 | 8 10 Average Capacity 8 | 8 8 Most Carried 9 | 6 9 Average Carried 7 | 6 7 Final Capacity 10 | 8 10 Final Carried 8 | 6 8 Class Distribution -------------------- 100% | Mutant Dominant Class ---------------- Mutant | -10/Materials Resources | -11 -10 ----------- Run | Yrd Mat Matter Collected 571 | 209 362 Remotely . | . . Salvage Created 956 | 62 894 Parts 60 | 2 58 Haulers Intercepted 2 | . 2 Recyclers Shooed 5 | . 5 Parts Field Recycled . | . . Retrieved Matter . | . . Parts Self-Destructed . | . . Prevented . | . . Kills | -11 -10 ------- Run | Yrd Mat Combat Hostiles Destroyed 13 | . 13 Guns 13 | . 13 Classes Destroyed 7 | 1 6 Worker 2 | . 2 Builder 2 | . 2 Hauler 2 | . 2 Recycler 2 | 1 1 Operator 1 | . 1 Watcher 3 | . 3 Grunt 13 | . 13 Best Kill Streak 4 | 1 4 Combat Bots Only 2 | . 2 Max Kills in Single Turn 1 | 1 1 Gunslinging . | . . Exploded . | . . Melee . | . . Uniques/NPCs Destroyed . | . . Combat | -11 -10 -------- Run | Yrd Mat Hostile Shots Fired 100 | . 100 Missed 22 | . 22 Damage Taken 1066 | . 1066 Core 259 | . 259 Absorbed by Shields . | . . Core Remaining (%) 100 | 100 . Volleys Fired 115 | 3 112 Largest 2 | 2 2 Hottest 80 | 60 80 Shots Fired 228 | 6 222 Gun 228 | 6 222 Cannon . | . . Launcher . | . . Special . | . . Kinetic 127 | 3 124 Thermal 90 | 3 87 Explosive . | . . Electromagnetic 11 | . 11 Robot Hit Streak 13 | 6 13 Robot Miss Streak 4 | . 4 Penetration Max . | . . Secondary Targets 2 | . 2 Max Gunslinging Chain 1 | . 1 Shots Hit Robots 128 | 6 122 Core Hits 55 | 2 53 Critical Kills . | . . Critical Parts Destroyed . | . . Critical Strikes . | . . Melee Attacks . | . . Impact . | . . Slashing . | . . Piercing . | . . Sneak Attacks . | . . Combat Hostiles . | . . Follow-up Attacks . | . . Damage Inflicted 1370 | 63 1307 Guns 1370 | 63 1307 Cannons . | . . Explosions . | . . Melee . | . . Ramming . | . . Kinetic 678 | 31 647 Thermal 610 | 32 578 Explosive . | . . Electromagnetic 82 | . 82 Impact . | . . Slashing . | . . Piercing . | . . Highest Corruption . | . . Average Corruption . | . . Corruption Purged . | . . Corruption Blocked . | . . Overload Shots . | . . Overflow Damage . | . . Projectiles . | . . Explosions . | . . Melee . | . . Knockbacks . | . . Impact . | . . Kinetic . | . . Secondary . | . . Self-Inflicted Damage . | . . Shots . | . . Rammed . | . . Targets Rammed . | . . Kicked . | . . Crushed . | . . Highest Temperature 235 | . 235 Average Temperature 72 | . 72 Received Heat Transfer 633 | . 633 Effects 1 | . 1 Energy Bleed 1 | . 1 Siege Activations . | . . Robots Corrupted . | . . Combat Hostiles . | . . Parts Fried . | . . Impact Corruptions . | . . Robots Melted . | . . Combat Hostiles . | . . Parts Melted 1 | . 1 Heat Transferred 1325 | 75 1250 Parts Sabotaged . | . . Parts Stolen . | . . Parts Stripped . | . . Power Chain Reactions . | . . Alert | -11 -10 ------- Run | Yrd Mat Peak Influence 262 | 5 262 Initial 3 | . 3 Average 145 | 2 148 Maximum Alert Level 1 | . 1 Low Security (%) 71 | 100 71 Level 1 28 | . 28 Level 2 . | . . Level 3 . | . . Level 4 . | . . Level 5 . | . . High Security . | . . Max Security . | . . Squads Dispatched 2 | . 2 Investigation 1 | . 1 Extermination . | . . Reinforcement 1 | . 1 Assault . | . . Garrison . | . . Intercept . | . . Searches Triggered . | . . Construction Impeded . | . . Haulers Reinforced . | . . Active Scanning Responses . | . . Cargo Convoy Interrupts . | . . Stealth | -11 -10 --------- Run | Yrd Mat Distress Signals 1 | . 1 Communications Jammed . | . . Distress Signals . | . . Times Spotted 22 | . 22 Peak Tracking Total 4 | . 4 Tactical Retreats . | . . Traps | -11 -10 ------- Run | Yrd Mat Traps Triggered . | . . Indirectly . | . . Trap Hack Attempts . | . . Triggered . | . . Disarmed . | . . Reprogrammed . | . . Reused . | . . Traps Extracted . | . . Installed . | . . Triggered . | . . Machines | -11 -10 ---------- Run | Yrd Mat Machines Disabled 1 | . 1 Max in Single Turn 1 | . 1 Machines Repaired . | . . Machines Dismantled . | . . Machines Sabotaged . | . . Overloaded Fab Kills . | . . Hacking | -11 -10 --------- Run | Yrd Mat Machines Accessed 4 | . 4 Terminals 3 | . 3 Fabricators . | . . Repair Stations . | . . Recycling Units 1 | . 1 Scanalyzers . | . . Garrison Access . | . . Total Hacks 21 | . 21 Successful 4 | . 4 Failed 17 | . 17 Catastrophic 3 | . 3 Database Lockouts . | . . Manual 13 | . 13 Terminals 17 | . 17 Fabricators . | . . Repair Stations . | . . Recycling Units 4 | . 4 Scanalyzers . | . . Garrison Access . | . . Terminal Hacks 3 | . 3 Robot Analysis 3 | . 3 Fabricator Hacks . | . . Repair Station Hacks . | . . Recycling Unit Hacks 1 | . 1 Retrieve Components 1 | . 1 Scanalyzer . | . . Garrison Access Hacks . | . . Unauthorized Hacks . | . . Terminals . | . . Fabricators . | . . Repair Stations . | . . Recycling Units . | . . Scanalyzers . | . . Garrison Access . | . . Data Cores Recovered . | . . Used . | . . Hacking Detections 3 | . 3 Full Trace Events 2 | . 2 Feedback Events . | . . Feedback Blocked . | . . Robot Schematics Acquired . | . . Robots Built . | . . Authchips . | . . Time . | . . Total Robot Build Rating . | . . Part Schematics Acquired . | . . Parts Built . | . . Authchips . | . . Time . | . . Total Part Build Rating . | . . Parts Repaired . | . . Time . | . . Parts Recycled . | . . Recycled Matter . | . . Retrieved Matter . | . . Retrieved Components 1 | . 1 Parts Scanalyzed . | . . Part Schematics Acquired . | . . Parts Damaged . | . . Bothacking | -11 -10 ------------ Run | Yrd Mat Used RIF Installer . | . . Robots Hacked . | . . Non-combat . | . . Combat . | . . Robot Hacks Applied . | . . Relay Couplers Released . | . . Fabnet Peak Effective % . | . . Robots Rewired . | . . Allies Hacked . | . . Hacks Repelled . | . . Allies | -11 -10 -------- Run | Yrd Mat Total Allies . | . . Largest Group . | . . Highest-Rated Group . | . . Highest-Rated Ally . | . . Total Orders . | . . Ally Attacks . | . . Total Damage . | . . Kills . | . . Allies Corrupted . | . . Allies Melted . | . . Intel | -11 -10 ------- Run | Yrd Mat Robot Analysis Total 3 | . 3 Derelict Logs Recovered . | . . Drone Launches . | . . Drone Recoveries . | . . Exploration | -11 -10 ------------- Run | Yrd Mat Turns Passed 922 | 23 899 Spaces Moved 437 | 12 425 Core . | . . Treads 178 | . 178 Legs 31 | 12 19 Wheels 228 | . 228 Hover . | . . Flight . | . . Fastest Speed 95 | 120 95 Average Speed 125 | 120 125 Slowest Speed 160 | 120 160 Overloaded Moves . | . . Propulsion Burnouts . | . . Robots Hopped . | . . Cave-ins Triggered . | . . Exploration Rate (%) 31 | 2 61 Regions Visited 1 Branch Regions . Pre-discovered Areas . | . . Known Exits Taken . | . . Unknown Exits Taken 1 | 1 . Scrap Searched . | . . Spaces Dug . | . . Terrain Destroyed . | . . Melee . | . . Projectile . | . . AOE . | . . Terrain Rammed . | . . Walls Destroyed . | . . Machines Disabled . | . . Actions | -11 -10 --------- Run | Yrd Mat Total 599 | 14 585 Wait 5 | . 5 Move 436 | 11 425 Hop . | . . Pick Up 11 | . 11 Fast Attach 7 | . 7 Attach 6 | . 6 Detach . | . . Swap 5 | . 5 Drop 14 | . 14 Fire 115 | 3 112 Melee . | . . Ram . | . . Kick . | . . Crush . | . . Escape Stasis . | . . Rewire . | . . Trap . | . . Miscellaneous . | . . Route ------- -11/Scrapyard -10/Materials (discovered 3 exits: *Mat x2 / [*Min]) History --------- Turn | Location | Event 1 | -11/Scrapyard | Discovered new exit (range 3) 24 | -11/Scrapyard | Entered Materials 257 | -10/Materials | Discovered new exit (range 7) 304 | -10/Materials | Discovered new exit (range 16) 349 | -10/Materials | Build established: Mutant 607 | -10/Materials | Discovered new exit (range 9) 620 | -10/Materials | Identified exit to Materials 814 | -10/Materials | Core integrity fell below 50% 898 | -10/Materials | Core integrity fell below 20% 923 | -10/Materials | Destroyed by G-47 Trooper with Particle Gun Last Messages --------------- 00833_ K-01 Serf collects debris. 00838_ Critical hit (Burn: +37). 00843_ Imp. Heat Sink melted. 00843_ G-47 Trooper destroyed. 00849_ G-34 Mercenary destroyed. 00852_ Door malfunctions. 00859_ Dropped Lgt. Ion Engine. 00859_ Acquired Ion Engine. 00860_ U-05 Engineer repairs door. 00861_ Acquired 22 matter. 00862_ U-05 Engineer destroyed. 00864_ K-01 Serf cleans the Hadron Collector. 00881_ EM Pulse Gun destroyed. 00883_ K-01 Serf cleans the Hadron Collector. 00887_ R-06 Scavenger collects Wheel. 00891_ R-06 Scavenger collects Sml. Laser. 00896_ R-06 Scavenger collects Corrupted Aluminum Leg. 00896_ G-34 Mercenary destroyed. 00896_ Switching to secondary target: G-47 Trooper. 00923_ Overheating: Energy bleed (-50). Map ----- +----------------------------------------------------+ | ???????????????????????? #####+##### #????# | | ??????????????????????????? + # ###### | | ?????????????????????????????# # | | ?????????????????????????????# # | | ?????????????????????????????# # | | ?????????????????????????????# # ###### | | ?????????????????????????????# # ## | | ?????????????????????????????# # ##""" | | ?????????????????????????????# # ##""" | | ????????????????????? #T############+### ##""" | | ???????????????????? ## | | ???????????????????? ## ! | | ???????????????????? ## | | ??????????????????????############# ######### | | ??????????????????????????????????# #???????# | | ??????????????????????????????????# #???????##### | | ????????????????????????###???????#%########?#### | | ??????????????##########"T"######## # #?# | | ??????????????# #! """ ### | | ??????????????# # """ + + | | ??????????????# #! """ # # | | ??????????????# << """ |""" # # ###+ | | ??????????????# < """ """ # *# # | | ??????????????# < """ """ ######## # "" | | ??????????????# < """ """ T#?????# # "Y | | ??????????????# g @ % ##?????# # "" | | ??????????????# %=r %######## # | | ??????????????# ##### % % # | | ??????????? ?????# # ! | | ?????????? ??????# % # | | ??????????? ????????####/#### + | | ??????????? ##+??????????# =%% # ##+###### | | ??????????? ???????????????# =* # # ???? | | ???????????????????????????#""" # # ?? | | ???????????????????????????#""" # # == | | ???????????????????????????#""" # # == | | ???????????????????????????# # # = | | ???????????????????????????######## # | | ??????????????????????????????????# # | | ??????????????????????????????????# # | | ??????????????????????????????????# # | | ??????????????????????????????????# ######### | | ??????????????????????????????????#######???????? | | ????????????????????????????????????????????????? | | ????????????????????????????????????????????????? | | ????????????????????????????????????????????????? | | ????????????????????????????????????????????????? | | ????????????????????????????????????????????????? | | ????????????????????????????????????????????????? | | ????????????????????????????????????????????????? | +----------------------------------------------------+ Best States ------------- Heat Dissipation 25 Energy Generation 10 Energy Capacity 250 Matter Stores 300 Matter Capacity 300 Sight Range 16 Robot Scan Range 14 Terrain Scan Density 10 Armor Coverage 150 Evasion (%) 55 Recoil Reduction 2 Item Schematics ----------------- None Robot Schematics ------------------ None Fabricated ------------ Nothing Alien Tech Used ----------------- None Achievements -------------- None Challenges ------------ None Game ------ Seed GyrokineticPropulsionStick Manual? 0 Play Time 00:11:01 Cumulative 259.2 hours Start 2024.09.01 @ 11:43:09 End 2024.09.01 @ 11:52:39 Sessions 1 Manual Loads 0 Difficulty Rogue Special Mode None Game No. 151 Rogue 151 Adventurer 0 Explorer 0 Win Type - Total 7 Types 4/1/2/0/0/0/0/0/0 Lore% 49 Gallery% 57 Achievement% 55 Wizard Run 0 Options --------- Layout 1 ASCII 0 Keyboard 0 Movement Mouse Keybinds 0 Fullscreen 1 Font 20/SmallcapsGlow Map View 58x39 Zoom Use 0% Tactical HUD 1 Map Filters NONE Filters NONE Steam 1 RUN: 710b514e-3293-4fbf-a792-d479793fcbbd